Cogmind - Beta 13 *** ADVENTURER MODE // 2024.04.07 @ 13:55:27 Player: Rambo Result: Destroyed by 1W-ZJN(R) with Subdweller Shrapnel Launcher Performance ------------- Evolutions (0) 0 Regions Visited (2) 400 Robots Destroyed (37) 185 Value Destroyed (933) 933 Prototype IDs (3) 60 Alien Tech Used (0) 0 Bonus (-176) -176 TOTAL SCORE: 1402 Bonus ------- High Alert Combat Kills 4 Friendly Fire -180 Cogmind --------- Core Integrity 0/250 Matter 238/300 Energy 200/200 System Corruption 1% Temperature Cool (0) Movement Rolling (95) Ox1 Location -10/Subcaves Parts ------- > --- POWER (1) -------- Subdweller Power Source > --- PROPULSION (2) --- Wheel Subdweller Monowheel > --- UTILITY (2) ------ Small Storage Unit Power Shielding > --- WEAPON (2) ------- Subdweller Machine Gun Subdweller Machine Gun > --- INVENTORY (8) ---- Subdweller Power Source Medium Storage Unit High-capacity Battery (250) High-capacity Matter Pod (179) Sensor Array Scrap Shield Peak State ------------ > --- POWER ------------ Subdweller Power Source > --- PROPULSION ------- Compact Wheel Subdweller Monowheel > --- UTILITY ---------- Small Storage Unit High-capacity Battery > --- WEAPON ----------- Subdweller Machine Gun Subdweller Machine Gun > --- INVENTORY -------- Subdweller Power Source Medium Storage Unit High-capacity Matter Pod Sensor Array Power Shielding Scrap Shield [Rating: 12] Favorites ----------- Power Ion Engine Engine Ion Engine Propulsion Wheel Leg Aluminum Leg Wheel Wheel Hover Unit Hover Unit Utility Small Storage Unit Device Structural Scanner Storage Small Storage Unit Protection Power Shielding Weapon Grenade Launcher Energy Gun Medium Laser Energy Cannon Beam Cannon Ballistic Gun Subdweller Machine Gun Launcher Grenade Launcher Build | -11 -10 -10 ------- Run | Yrd Mat Sub Slots Evolved . | . . . Power . | . . . Propulsion . | . . . Utility . | . . . Weapon . | . . . Parts Attached 36 | 6 19 11 Power 3 | 1 1 1 Engine 3 | 1 1 1 Core . | . . . Reactor . | . . . Propulsion 11 | 2 5 4 Treads . | . . . Leg 2 | 2 . . Wheel 8 | . 4 4 Hover 1 | . 1 . Flight . | . . . Utility 12 | 1 8 3 Device 3 | . 3 . Storage 5 | 1 3 1 Processor . | . . . Hackware . | . . . Protection 4 | . 2 2 Artifact . | . . . Weapon 10 | 2 5 3 Energy Gun 1 | 1 . . Energy Cannon 3 | . 3 . Ballistic Gun 4 | 1 . 3 Ballistic Cannon . | . . . Launcher 2 | . 2 . Special Weapon . | . . . Impact Weapon . | . . . Slashing Weapon . | . . . Piercing Weapon . | . . . Special Melee Weapon . | . . . Unidentified Prototypes . | . . . Parts Lost 5 | . . 5 Power 1 | . . 1 Propulsion 2 | . . 2 Utility . | . . . Weapon 2 | . . 2 Highest Loss Streak 5 | . . 5 To Critical Strikes . | . . . Average Slot Usage (%) 95 | . 97 92 Engine 13 | . 14 12 Leg 8 | . 12 . Wheel 18 | . 15 25 Device 8 | . 9 4 Storage 13 | . 12 15 Protection 4 | . 3 7 Energy Gun 1 | . 2 . Energy Cannon 8 | . 9 4 Ballistic Gun 7 | . 4 16 Launcher 9 | . 11 4 Naked Turns . | . . . Heaviest Build 19 | 9 17 19 Greatest Support 36 | 20 20 36 Greatest Overweight (x) 4 | . . 4 Average Overweight (x) . | . . . Largest Inventory Capacity 10 | 5 10 8 Average Capacity 6 | 5 6 8 Most Carried 8 | 5 6 8 Average Carried 4 | 2 4 6 Final Capacity 8 | 5 8 8 Final Carried 7 | 3 5 7 Class Distribution -------------------- 82% | Mutant 17% | Scavenger-Mutant Dominant Class ---------------- Mutant | -10/Materials Scavenger-Mutant | -10/Subcaves Resources | -11 -10 -10 ----------- Run | Yrd Mat Sub Matter Collected 1122 | 372 609 141 Remotely . | . . . Salvage Created 949 | 74 652 223 Parts 63 | 6 39 18 Haulers Intercepted 1 | . 1 . Recyclers Shooed 2 | . 2 . Parts Field Recycled . | . . . Retrieved Matter . | . . . Parts Self-Destructed 7 | . . 7 Prevented . | . . . Kills | -11 -10 -10 ------- Run | Yrd Mat Sub Combat Hostiles Destroyed 25 | 1 16 8 Guns 3 | 1 2 . Cannons 6 | . 5 1 AOE 16 | . 9 7 Classes Destroyed 9 | 2 5 2 Worker 4 | 1 3 . Builder 2 | . 2 . Hauler 1 | . 1 . Recycler 1 | . 1 . Watcher 3 | . 3 . Swarmer 3 | . 3 . Grunt 15 | 1 13 1 Subdweller 7 | . . 7 Guerrilla 1 | . . 1 Best Kill Streak 12 | 1 12 7 Combat Bots Only 7 | 1 4 7 Max Kills in Single Turn 3 | 1 3 3 Gunslinging . | . . . Exploded 2 | . 2 2 Melee . | . . . Uniques/NPCs Destroyed . | . . . Combat | -11 -10 -10 -------- Run | Yrd Mat Sub Hostile Shots Fired 93 | 4 51 38 Missed 29 | 1 17 11 Damage Taken 852 | 25 298 529 Core 256 | 17 34 205 Absorbed by Shields . | . . . Ignored by Resistances 259 | 8 98 153 Regen/Repaired (Parts) 24 | . 24 . Core Remaining (%) 93 | 93 . . Volleys Fired 61 | 4 43 14 Largest 2 | 2 2 2 Hottest 90 | 70 90 90 Shots Fired 103 | 8 68 27 Gun 42 | 8 22 12 Cannon 33 | . 26 7 Launcher 28 | . 20 8 Special . | . . . Kinetic 30 | 4 14 12 Thermal 45 | 4 34 7 Explosive 28 | . 20 8 Electromagnetic . | . . . Robot Hit Streak 22 | 7 10 22 Robot Miss Streak 2 | . 2 2 Penetration Max . | . . . Secondary Targets . | . . . Shots Hit Robots 76 | 7 47 22 Core Hits 62 | 3 39 20 Critical Kills . | . . . Critical Parts Destroyed . | . . . Critical Strikes . | . . . Melee Attacks . | . . . Impact . | . . . Slashing . | . . . Piercing . | . . . Sneak Attacks . | . . . Combat Hostiles . | . . . Follow-up Attacks . | . . . Damage Inflicted 3233 | 86 1711 1436 Guns 462 | 86 190 186 Cannons 434 | . 348 86 Explosions 2337 | . 1173 1164 Melee . | . . . Ramming . | . . . Kinetic 312 | 37 89 186 Thermal 584 | 49 449 86 Explosive 2269 | . 1105 1164 Electromagnetic 68 | . 68 . Impact . | . . . Slashing . | . . . Piercing . | . . . Highest Corruption 1 | . 1 1 Average Corruption 1 | . 1 1 Corruption Purged . | . . . Corruption Blocked . | . . . Effects 1 | . . 1 Misfires 1 | . . 1 Overload Shots . | . . . Overflow Damage 23 | . 14 9 Projectiles . | . . . Explosions 23 | . 14 9 Melee . | . . . Knockbacks . | . . . Impact . | . . . Kinetic . | . . . Secondary . | . . . Self-Inflicted Damage 67 | . 25 42 Shots 6 | . 2 4 Rammed . | . . . Targets Rammed . | . . . Kicked . | . . . Crushed . | . . . Highest Temperature 427 | 50 427 14 Average Temperature 129 | 19 143 8 Received Heat Transfer 300 | 18 174 108 Effects 5 | . 5 . Shutdowns 2 | . 2 . Interference 1 | . 1 . Matter Decay 1 | . 1 . Damage (minor) 1 | . 1 . Siege Activations . | . . . Robots Corrupted . | . . . Combat Hostiles . | . . . Parts Fried . | . . . Impact Corruptions . | . . . Robots Melted . | . . . Combat Hostiles . | . . . Parts Melted 3 | . 3 . Heat Transferred 1369 | 148 1036 185 Parts Sabotaged . | . . . Parts Stolen . | . . . Parts Stripped . | . . . Power Chain Reactions . | . . . Alert | -11 -10 -10 ------- Run | Yrd Mat Sub Peak Influence 443 | 25 443 . Initial 13 | . 13 . Average 170 | 5 191 . Maximum Alert Level 2 | . 2 . Low Security (%) 55 | 100 49 . Level 1 41 | . 46 . Level 2 3 | . 3 . Level 3 . | . . . Level 4 . | . . . Level 5 . | . . . High Security . | . . . Max Security . | . . . Squads Dispatched 5 | . 5 . Investigation 5 | . 5 . Extermination . | . . . Reinforcement . | . . . Assault . | . . . Garrison . | . . . Intercept . | . . . Searches Triggered . | . . . Construction Impeded . | . . . Haulers Reinforced . | . . . Active Scanning Responses . | . . . Cargo Convoy Interrupts . | . . . Stealth | -11 -10 -10 --------- Run | Yrd Mat Sub Distress Signals 2 | . 2 . Communications Jammed . | . . . Distress Signals . | . . . Times Spotted 36 | 1 21 14 Peak Tracking Total 6 | 1 4 6 Tactical Retreats . | . . . Traps | -11 -10 -10 ------- Run | Yrd Mat Sub Traps Triggered 4 | . 4 . Indirectly . | . . . Trap Hack Attempts . | . . . Triggered . | . . . Disarmed . | . . . Reprogrammed . | . . . Reused . | . . . Traps Extracted . | . . . Installed . | . . . Triggered . | . . . Machines | -11 -10 -10 ---------- Run | Yrd Mat Sub Machines Disabled 3 | . 3 . Max in Single Turn 1 | . 1 . Machines Repaired . | . . . Machines Dismantled . | . . . Machines Sabotaged . | . . . Overloaded Fab Kills . | . . . Hacking | -11 -10 -10 --------- Run | Yrd Mat Sub Machines Accessed 10 | . 10 . Terminals 7 | . 7 . Fabricators . | . . . Repair Stations 1 | . 1 . Recycling Units 2 | . 2 . Scanalyzers . | . . . Garrison Access . | . . . Total Hacks 39 | . 39 . Successful 31 | . 31 . Failed 8 | . 8 . Catastrophic . | . . . Database Lockouts . | . . . Manual . | . . . Terminals 27 | . 27 . Fabricators . | . . . Repair Stations 4 | . 4 . Recycling Units 8 | . 8 . Scanalyzers . | . . . Garrison Access . | . . . Terminal Hacks 22 | . 22 . Record 8 | . 8 . Prototype ID Bank 2 | . 2 . Alert Level 5 | . 5 . Unreport Threat 1 | . 1 . Dispatch Records 1 | . 1 . Security Status 1 | . 1 . Hauler Manifests 2 | . 2 . Registered Components 1 | . 1 . Zone Layout 1 | . 1 . Fabricator Hacks . | . . . Repair Station Hacks 3 | . 3 . Scan Component 1 | . 1 . Repair 1 | . 1 . Refit 1 | . 1 . Recycling Unit Hacks 6 | . 6 . Recycle Component 2 | . 2 . Process 2 | . 2 . Retrieve Matter 1 | . 1 . Retrieve Components 1 | . 1 . Scanalyzer . | . . . Garrison Access Hacks . | . . . Unauthorized Hacks . | . . . Terminals . | . . . Fabricators . | . . . Repair Stations . | . . . Recycling Units . | . . . Scanalyzers . | . . . Garrison Access . | . . . Data Cores Recovered . | . . . Used . | . . . Hacking Detections 8 | . 8 . Full Trace Events 3 | . 3 . Feedback Events . | . . . Feedback Blocked . | . . . Robot Schematics Acquired . | . . . Robots Built . | . . . Authchips . | . . . Time . | . . . Total Robot Build Rating . | . . . Part Schematics Acquired . | . . . Parts Built . | . . . Authchips . | . . . Time . | . . . Total Part Build Rating . | . . . Parts Repaired 1 | . 1 . Time 26 | . 26 . Parts Recycled 2 | . 2 . Recycled Matter 225 | . 225 . Retrieved Matter 178 | . 178 . Retrieved Components . | . . . Parts Scanalyzed . | . . . Part Schematics Acquired . | . . . Parts Damaged . | . . . Bothacking | -11 -10 -10 ------------ Run | Yrd Mat Sub Used RIF Installer . | . . . Robots Hacked . | . . . Non-combat . | . . . Combat . | . . . Robot Hacks Applied . | . . . Relay Couplers Released . | . . . Fabnet Peak Effective % . | . . . Robots Rewired . | . . . Allies Hacked . | . . . Hacks Repelled . | . . . Allies | -11 -10 -10 -------- Run | Yrd Mat Sub Total Allies . | . . . Largest Group . | . . . Highest-Rated Group . | . . . Highest-Rated Ally . | . . . Total Orders . | . . . Ally Attacks . | . . . Total Damage . | . . . Kills . | . . . Allies Corrupted . | . . . Allies Melted . | . . . Intel | -11 -10 -10 ------- Run | Yrd Mat Sub Robot Analysis Total . | . . . Derelict Logs Recovered . | . . . Drone Launches . | . . . Drone Recoveries . | . . . Exploration | -11 -10 -10 ------------- Run | Yrd Mat Sub Turns Passed 1393 | 116 914 363 Spaces Moved 1207 | 85 805 317 Core 34 | 24 . 10 Treads . | . . . Legs 311 | 61 250 . Wheels 862 | . 555 307 Hover . | . . . Flight . | . . . Fastest Speed 50 | 50 80 80 Average Speed 93 | 100 92 94 Slowest Speed 250 | 120 120 250 Overloaded Moves . | . . . Propulsion Burnouts . | . . . Robots Hopped . | . . . Cave-ins Triggered . | . . . Exploration Rate (%) 38 | 7 80 27 Regions Visited 2 Branch Regions 1 Pre-discovered Areas . | . . . Known Exits Taken . | . . . Unknown Exits Taken 2 | 1 1 . Scrap Searched . | . . . Spaces Dug . | . . . Terrain Destroyed 112 | . 86 26 Melee . | . . . Projectile . | . . . AOE 112 | . 86 26 Terrain Rammed . | . . . Walls Destroyed . | . . . Machines Disabled . | . . . Actions | -11 -10 -10 --------- Run | Yrd Mat Sub Total 1372 | 108 906 358 Wait 13 | 5 8 . Move 1205 | 84 804 317 Hop . | . . . Pick Up 36 | 9 17 10 Fast Attach . | . . . Attach 16 | 6 3 7 Detach 4 | . 2 2 Swap 20 | . 16 4 Drop 17 | . 13 4 Fire 61 | 4 43 14 Melee . | . . . Ram . | . . . Kick . | . . . Crush . | . . . Escape Stasis . | . . . Rewire . | . . . Trap . | . . . Miscellaneous . | . . . Route ------- -11/Scrapyard -10/Materials (discovered 5 exits: [*Mat x2] / [*Min x2] / [*Sub]) -10/Subcaves (discovered 1 exit: [*Mat]) History --------- Turn | Location | Event 2 | -11/Scrapyard | Met Revision 17 87 | -11/Scrapyard | Discovered new exit (range 8) 117 | -11/Scrapyard | Entered Materials 284 | -10/Materials | Repaired Lgt. Ion Engine 317 | -10/Materials | Build established: Mutant 358 | -10/Materials | Discovered new exit (range 7) 639 | -10/Materials | Discovered new exit (range 16) 734 | -10/Materials | Discovered new exit (range 15) 773 | -10/Materials | Discovered new exit (range 8) 879 | -10/Materials | Discovered new exit (range 14) 1031 | -10/Materials | Entered Subcaves 1134 | -10/Subcaves | Ambushed by swarm of Subdwellers 1135 | -10/Subcaves | Ambushed by Subdwellers from Twisted Machinery 1142 | -10/Subcaves | Ambushed by Subdwellers from Twisted Machinery 1142 | -10/Subcaves | Ambushed by Subdwellers from Twisted Machinery 1145 | -10/Subcaves | Core integrity fell below 50% 1169 | -10/Subcaves | Destroyed 7 combat bots 1179 | -10/Subcaves | Lost 5 parts (1p2n2w) 1241 | -10/Subcaves | Discovered new exit (range 9) 1393 | -10/Subcaves | Core integrity fell below 20% 1394 | -10/Subcaves | Destroyed by 1W-ZJN(R) with Subdweller Shrapnel Launcher Last Messages --------------- Subatomizers dissect the Sub. Machine Gun. Dropped Med. Matter Pod. Acquired Sub. Power Source. Subatomizers dissect the Sub. Machine Gun. Acquired Sub. Machine Gun. Acquired 35 matter. Subatomizers dissect the Bore Cannon. EXIT=FOUND Acquired Wheel. Dropped Com. Wheel. Acquired 11 matter. Acquired 9 matter. Sub. Monowheel shoots sparks and powers down. System corrupted: FCS attempts to trigger Sub. Machine Gun. System corrupted: Sub. Machine Gun misfires. 37-0M8(R) suffers critical hit (Burn). 37-0M8(R) destroyed. Acquired Sub. Machine Gun. Dropped Sub. Machine Gun. [Achievement: First Step to Greatness] Map ----- +----------------------------------------------------+ | ?????????????????????????????????????????????????? | | ?????????????????????????????????????????????????? | | ?????????????????????????????????????????????????? | | ?????????????????????????????????????????????????? | | ?????????????????????????????????????????????????? | | ?????????????????????????????????????????????????? | | ?????????????????????????????????????????????????? | | ?????????????????????????????????????????????????? | | ?????????????????????????????????????????????????? | | ?????????????????????????????????????????????????? | | ?????????????????????????????????????????????????? | | ?????????????????????????????????????????????????? | | ?????????????????????????????????????????????????? | | ?????????????????????????????????????????????????? | | ?????????????????????????????????????????????????? | | ????????????????????????##???????????????????????? | | ???????????????????????? ???????? ??????????????? | | ???????????????????????? ##????? #??????????????? | | ????????????????????????# #???? #??????????????? | | ???????????????????????## #??? #??????????????? | | ???????????????????????# #??? #??????????????? | | ??????????????????????? ##? #????? ?????????? | | ??????????????????????## ;;# ## ?????????? | | ??????????????????????#;; ;; R ????????? | | ???????????????????####;; ????????????? | | ???????????????????# @ ;#???????????????????? | | ???????????????????# ;#????????????????##?? | | ???????????????????# ;;#??????????????# ?? | | ???????????????????# g;;##??????????????# #? | | ???????????????????# ; g###??????????????## # | | ???????????????????###### "###?????????????# | | ?????????????###???????##g" ##??####??????# | | ????????????## #???#### """ #?## #??????# | | ???????????## #?## """ ### #??????# | | ???????????# ## """" ## #???????? | | ???????????????# "" "### ###??????? | | ?????????????### & ######## ##???????# | | ???????????### [%########## #????????# | | ???????????# #### ### ##??????## | | ??????????# ## ## "" ###" ##????## | | ??????????## ??## "" "## " ##??## | | ????????????#????# "" ###" " #### | | ?????????????????## ###?## """ ## | | ??????????????????### ## ##????# " # | | ????????????????????# ### ###?????# ####### | | ????????????????????###?####???????#########?????? | | ?????????????????????????????????????????????????? | | ?????????????????????????????????????????????????? | | ?????????????????????????????????????????????????? | | ?????????????????????????????????????????????????? | +----------------------------------------------------+ Best States ------------- Heat Dissipation 25 Energy Generation 15 Energy Capacity 450 Matter Stores 400 Matter Capacity 400 Sight Range 16 Robot Scan Range 14 Terrain Scan Density 10 Armor Coverage 80 Resistance: KI 20 Resistance: TH 20 Resistance: EX 20 Resistance: EM 20 Resistance: I 20 Resistance: S 20 Resistance: P 20 Power Shielding 33 Evasion (%) 55 Offensive Hacking 10 Item Schematics ----------------- None Robot Schematics ------------------ None Fabricated ------------ Nothing Alien Tech Used ----------------- None Achievements -------------- Backstab Crack Shot Everything Is Under Control First Step to Greatness Loot Pinata One Hack Too Far Part-time Mechanic Shopping List Challenges ------------ None Game ------ Seed TeslaIonicGravjet Manual? 0 Play Time 00:49:50 Cumulative 0.8 hours Start 2024.04.07 @ 13:01:24 End 2024.04.07 @ 13:55:27 Sessions 1 Manual Loads 0 Difficulty Adventurer Special Mode None Game No. 1 Rogue 0 Adventurer 1 Explorer 0 Win Type - Total 0 Types 0/0/0/0/0/0/0/0/0 Lore% 0 Gallery% 2 Achievement% 3 Wizard Run 0 Options --------- Layout 1 ASCII 0 Keyboard 0 Movement Arrows Keybinds 0 Fullscreen 1 Font 32/SmallcapsGlow Map View 77x35 Zoom Use 0% Tactical HUD 0 Map Filters NONE Filters NONE Steam 1 RUN: c3b9f434-ddab-43fa-ae4f-bee88a8b0591